fUSD/lending_fUSD_20240426
["ID","MTS","AMOUNT","RATE_DAILY","PERIOD"]
[323690776,1714165875955,-2000.0,0.00012876,2]
[323690777,1714165875964,-509.95,0.00012876,2]
[323690778,1714165875973,-803.02,0.00012876,2]
[323690779,1714165875982,-363.21,0.00012876,2]
[323690780,1714165875992,-500.0,0.00012876,2]
[323690781,1714165876001,-749.95,0.00012876,2]
[323690782,1714165876010,-527.35,0.00012876,2]
[323690783,1714165876020,-500.0,0.00012876,2]
[323690784,1714165876029,-565.11,0.00012876,2]
[323690785,1714165876038,-656.68,0.00012876,2]
[323690786,1714165876047,-500.0,0.00012876,2]
[323690787,1714165876057,-626.53,0.00012876,2]
[323690788,1714165876066,-1008.89,0.00012876,2]
[323690789,1714165876075,-500.0,0.00012876,2]
[323690790,1714165876085,-837.59,0.00012876,2]
[323690791,1714165876095,-525.53,0.00012876,2]
[323690792,1714165876105,-1849.17,0.00012876,2]
[323690793,1714165876114,-565.57,0.00012876,2]
[323690794,1714165876124,-500.0,0.00012876,2]
[323690795,1714165876134,-1095.79,0.00012876,2]
[323690796,1714165876143,-500.0,0.00012876,2]
[323690797,1714165876152,-1100.72,0.00012876,2]
[323690798,1714165876162,-500.0,0.00012876,2]
[323690799,1714165876172,-500.0,0.00012876,2]
[323690800,1714165876181,-500.0,0.00012876,2]
[323690801,1714165876190,-609.39,0.00012876,2]
[323690802,1714165876199,-500.0,0.00012876,2]
[323690803,1714165876208,-1415.44,0.00012876,2]
[323690804,1714165876217,-500.0,0.00012876,2]
[323690805,1714165876226,-721.08,0.00012876,2]
[323690806,1714165876235,-500.0,0.00012876,2]
[323690807,1714165876245,-500.0,0.00012876,2]
[323690808,1714165876254,-521.34,0.00012876,2]
[323690809,1714165876263,-5617.73,0.00012876,2]
[323690810,1714165876273,-8630.93,0.00012876,2]
[323690811,1714165876282,-1052.38,0.00012876,2]
[323690812,1714165876294,-500.0,0.00012876,2]
[323690813,1714165876302,-1229.82,0.00012876,2]
[323690814,1714165876312,-6867.51,0.00012876,2]
[323690815,1714165876321,-600.27,0.00012876,2]
[323690816,1714165876332,-1794.51,0.00012876,2]
[323690817,1714165876342,-7720.32,0.00012876,2]
[323690818,1714165876352,-1596.74,0.00012876,2]
[323690819,1714165876361,-2414.19,0.00012876,2]
[323690820,1714165876371,-500.0,0.00012876,2]
[323690821,1714165876381,-2546.68,0.00012876,2]
[323690822,1714165876391,-11893.77,0.00012876,2]
[323690823,1714165876400,-500.0,0.00012876,2]
[323690824,1714165876409,-500.0,0.00012876,2]
[323690825,1714165876418,-500.0,0.00012876,2]
[323690826,1714165876429,-1472.99,0.00012876,2]
[323690827,1714165876439,-1714.54,0.00012876,2]
[323690828,1714165876450,-500.0,0.00012876,2]
[323690829,1714165876459,-3379.18,0.00012876,2]
[323690830,1714165876468,-746.33,0.00012876,2]
[323690831,1714165876478,-500.0,0.00012876,2]
[323690832,1714165876487,-1131.17,0.00012876,2]
[323690833,1714165876497,-500.0,0.00012876,2]
[323690834,1714165876506,-1362.32,0.00012876,2]
[323690835,1714165876515,-635.79,0.00012876,2]
[323690836,1714165876524,-1226.03,0.00012876,2]
[323690837,1714165876533,-1261.3,0.00012876,2]
[323690838,1714165876542,-2565.0,0.00012876,2]
[323690839,1714165876552,-626.49,0.00012876,2]
[323690840,1714165876561,-6474.87,0.00012876,2]
[323690841,1714165876570,-5265.92,0.00012876,2]
[323690842,1714165876578,-7575.76,0.00012876,2]
[323690843,1714165876588,-959.47,0.00012876,2]
[323690844,1714165876597,-500.0,0.00012876,2]
[323690845,1714165876606,-894.84,0.00012876,2]
[323690846,1714165876614,-1029.44,0.00012876,2]
[323690847,1714165876623,-1594.94,0.00012876,2]
[323690848,1714165876633,-1585.92,0.00012876,2]
[323690849,1714165876642,-927.21,0.00012876,2]
[323690850,1714165876651,-29278.54,0.00012876,2]
[323690851,1714165876660,-598.42,0.00012876,2]
[323690852,1714165876669,-2169.32,0.00012876,2]
[323690853,1714165876679,-500.0,0.00012876,2]
[323690854,1714165876688,-1031.64,0.00012876,2]
[323690855,1714165876697,-3003.77,0.00012876,2]
[323690856,1714165876706,-500.0,0.00012876,2]
[323690857,1714165876716,-500.0,0.00012876,2]
[323690858,1714165876725,-885.97,0.00012876,2]
[323690859,1714165876734,-1452.7,0.00012876,2]
[323690860,1714165876743,-500.0,0.00012876,2]
[323690861,1714165876753,-1299.05,0.00012876,2]
[323690862,1714165876763,-964.95,0.00012876,2]
[323690863,1714165876773,-6953.47,0.00012876,2]
[323690864,1714165876783,-2425.203459,0.00012876,2]
[323690865,1714165876793,-598.29,0.00012876,2]
[323690866,1714165876803,-2425.203455,0.00012876,2]
[323690867,1714165876814,-500.0,0.00012876,2]
[323690868,1714165876823,-2182.8,0.00012876,2]
[323690869,1714165876832,-1173.04,0.00012876,2]
[323690870,1714165876840,-2149.24,0.00012876,2]
[323690871,1714165876850,-831.79,0.00012876,2]
[323690872,1714165876859,-500.0,0.00012876,2]
[323690873,1714165876870,-2022.3,0.00012876,2]
[323690874,1714165876879,-4234.92,0.00012876,2]
[323690875,1714165876889,-2096.72,0.00012876,2]
[323690876,1714165876898,-1713.59,0.00012876,2]
[323690877,1714165876907,-625.39,0.00012876,2]
[323690878,1714165876916,-3159.71,0.00012876,2]
[323690879,1714165876926,-15953.33,0.00012876,2]
[323690880,1714165876935,-1338.07,0.00012876,2]
[323690881,1714165876946,-629.77,0.00012876,2]
[323690882,1714165876956,-500.0,0.00012876,2]
[323690883,1714165876966,-2250.5,0.00012876,2]
[323690884,1714165876975,-2333.3,0.00012876,2]
[323690885,1714165876985,-8716.91,0.00012876,2]
[323690886,1714165876994,-4686.34,0.00012876,2]
[323690887,1714165877004,-2136.27,0.00012876,2]
[323690888,1714165877013,-1193.75,0.00012876,2]
[323690889,1714165877023,-1350.24,0.00012876,2]
[323690890,1714165877032,-1860.65,0.00012876,2]
[323690891,1714165877042,-1152.1,0.00012876,2]
[323690892,1714165877051,-3493.58,0.00012876,2]
[323690893,1714165877060,-720.21,0.00012876,2]
[323690894,1714165877070,-1609.49,0.00012876,2]
[323690895,1714165877079,-743.96,0.00012876,2]
[323690896,1714165877089,-902.48,0.00012876,2]
[323690897,1714165877099,-4354.83,0.00012876,2]
[323690898,1714165877110,-771.76,0.00012876,2]
[323690899,1714165877120,-937.47,0.00012876,2]
[323690900,1714165877238,-563.05,0.00012876,2]
[323690901,1714165877249,-1806.19,0.00012876,2]
[323690902,1714165877258,-1571.07,0.00012876,2]
[323690903,1714165877269,-2572.91,0.00012876,2]
[323690904,1714165877279,-1736.03,0.00012876,2]
[323690905,1714165877293,-4550.03,0.00012876,2]
[323690906,1714165877303,-702.48,0.00012876,2]
[323690907,1714165877312,-2483.94,0.00012876,2]
[323690908,1714165877323,-683.53,0.00012876,2]
[323690909,1714165877335,-2118.68,0.00012876,2]
[323690910,1714165877344,-2305.98,0.00012876,2]
[323690911,1714165877354,-2824.94,0.00012876,2]
[323690912,1714165877363,-1519.98,0.00012876,2]
[323690913,1714165877373,-1443.87,0.00012876,2]
[323690914,1714165877383,-500.0,0.00012876,2]
[323690915,1714165877392,-1079.67,0.00012876,2]
[323690916,1714165877402,-5799.26,0.00012876,2]
[323690917,1714165877413,-2700.57,0.00012876,2]
[323690918,1714165877422,-1958.57,0.00012876,2]
[323690919,1714165877432,-500.0,0.00012876,2]
[323690920,1714165877441,-1238.29,0.00012876,2]
[323690921,1714165877451,-2076.33,0.00012876,2]
[323690922,1714165877460,-726.92,0.00012876,2]
[323690923,1714165877470,-3054.76,0.00012876,2]
[323690924,1714165877479,-978.83,0.00012876,2]
[323690925,1714165877488,-2476.96,0.00012876,2]
[323690926,1714165877497,-897.14,0.00012876,2]
[323690927,1714165877506,-1563.14,0.00012876,2]
[323690928,1714165877515,-500.0,0.00012876,2]
[323690929,1714165877524,-1893.28,0.00012876,2]
[323690930,1714165877533,-900.63,0.00012876,2]
[323690931,1714165877542,-1013.72,0.00012876,2]
[323690932,1714165877551,-718.21,0.00012876,2]
[323690933,1714165877561,-555.79,0.00012876,2]
[323690934,1714165877570,-6088.6,0.00012876,2]
[323690935,1714165877579,-500.0,0.00012876,2]
[323690936,1714165877590,-1066.3,0.00012876,2]
[323690937,1714165877599,-505.04,0.00012876,2]
[323690938,1714165877609,-2410.31,0.00012876,2]
[323690939,1714165877618,-820.43,0.00012876,2]
[323690940,1714165877627,-523.49,0.00012876,2]
[323690941,1714165877636,-908.81,0.00012876,2]
[323690942,1714165877646,-1371.32,0.00012876,2]
[323690943,1714165877655,-500.0,0.00012876,2]
[323690944,1714165877665,-2025.12,0.00012876,2]
[323690945,1714165877674,-560.23,0.00012876,2]
[323690946,1714165877684,-3137.06,0.00012876,2]
[323690947,1714165877693,-500.0,0.00012876,2]
[323690948,1714165877702,-500.0,0.00012876,2]
[323690949,1714165877711,-4702.4,0.00012876,2]
[323690950,1714165877721,-578.95,0.00012876,2]
[323690951,1714165877730,-500.0,0.00012876,2]
[323690952,1714165877739,-500.0,0.00012876,2]
[323690953,1714165877749,-995.94,0.00012876,2]
[323690954,1714165877758,-2682.02,0.00012876,2]
[323690955,1714165877768,-500.0,0.00012876,2]
[323690956,1714165877779,-500.0,0.00012876,2]
[323690957,1714165877788,-500.0,0.00012876,2]
[323690958,1714165877799,-1815.94,0.00012876,2]
[323690959,1714165877809,-500.0,0.00012876,2]
[323690960,1714165877818,-500.0,0.00012876,2]
[323690961,1714165877828,-2100.0,0.00012889,2]
[323690962,1714165877837,-1014.4495928,0.00012889,2]
[323690963,1714165877846,-2108.5923253,0.00012889,2]
[323690964,1714165877856,-14195.8318311,0.00012889,2]
[323690965,1714165877865,-1700000.00319506,0.00012898,2]
[323690966,1714165877875,-459081.347765,0.000129,2]
[323690967,1714165877885,-1000.0,0.000129,2]
[323690968,1714165877894,-3139.98142415,0.000129,2]
[323690969,1714165877903,-841.6,0.00012945,2]
[323690970,1714165877913,-2647.0413287,0.00012947,3]
[323690971,1714165877923,-300.0,0.0001297,2]
[323690972,1714165877932,-19077.86026767,0.00012991,3]
[323690973,1714165877942,-1168.8624479,0.00012991,2]
[323690974,1714165877952,-1323.2753029,0.00012991,2]
[323690975,1714165877962,-1477.688158,0.00012991,2]
[323690976,1714165877972,-1632.101013,0.00012991,2]
[323690977,1714165877982,-2454.0702786,0.00012991,2]
[323690978,1714165877992,-2799.5482318,0.00012991,2]
[323690979,1714165878003,-3145.0261851,0.00012991,2]
[323690980,1714165878012,-16562.3953255,0.00012991,2]
[323690981,1714165878022,-18928.95882,0.00012991,2]
[323690982,1714165878031,-21295.5223144,0.00012991,2]
[323690983,1714165878043,-15604029.48509419,0.00013,2]
[323690984,1714165878053,-469.91693994,0.00013,2]
[323690985,1714165878063,-737868.90323997,0.00013,2]
[323690986,1714165878074,-1000.0,0.00013,2]
[323690987,1714165878083,-6274426.77032902,0.00013,2]
[323690988,1714165878093,-203327.10836293,0.00013,2]
[323690989,1714165878103,-2800.0,0.00013,3]
[323690990,1714165878112,-2515832.19952695,0.00013,2]
[323690991,1714165878122,-842.0,0.00013,2]
[323690992,1714165878133,-3490.5041383,0.00013141,2]
[323690993,1714165878143,-23662.0858088,0.00013141,2]
[323690994,1714165878153,-436.28601563,0.0001315,2]
[323690995,1714165878163,-500.0,0.0001315,2]
[323690996,1714165878172,-500.0,0.0001315,2]
[323690997,1714165878182,-500.0,0.0001315,2]
[323690998,1714165878191,-500.0,0.0001315,2]
[323690999,1714165878201,-615.87,0.0001315,2]
[323691000,1714165878210,-500.0,0.0001315,2]
[323691001,1714165878220,-591.26,0.0001315,2]
[323691002,1714165878229,-500.0,0.0001315,2]
[323691003,1714165878239,-500.0,0.0001315,2]
[323691004,1714165878248,-500.0,0.0001315,2]
[323691005,1714165878258,-609.49,0.0001315,2]
[323691006,1714165878267,-500.0,0.0001315,2]
[323691007,1714165878276,-654.47,0.0001315,2]
[323691008,1714165878287,-678.23,0.0001315,2]
[323691009,1714165878302,-613.12,0.0001315,2]
[323691010,1714165878311,-646.77,0.0001315,2]
[323691011,1714165878321,-530.65,0.0001315,2]
[323691012,1714165878331,-880.46,0.0001315,2]
[323691013,1714165878339,-1006.3,0.0001315,2]
[323691014,1714165878349,-500.0,0.0001315,2]
[323691015,1714165878358,-500.0,0.0001315,2]
[323691016,1714165878369,-1261.56,0.0001315,2]
[323691017,1714165878379,-1360.51,0.0001315,2]
[323691018,1714165878388,-504.93,0.0001315,2]
[323691019,1714165878397,-1108.07,0.0001315,2]
[323691020,1714165878407,-500.0,0.0001315,2]
[323691021,1714165878416,-822.7,0.0001315,2]
[323691022,1714165878426,-543.02,0.0001315,2]
[323691023,1714165878435,-500.0,0.0001315,2]
[323691024,1714165878444,-1146.38,0.0001315,2]
[323691025,1714165878453,-1304.31,0.0001315,2]
[323691026,1714165878463,-560.91,0.0001315,2]
[323691027,1714165878472,-500.0,0.0001315,2]
[323691028,1714165878482,-500.0,0.0001315,2]
[323691029,1714165878491,-500.0,0.0001315,2]
[323691030,1714165878500,-500.0,0.0001315,2]
[323691031,1714165878511,-921.09,0.0001315,2]
[323691032,1714165878521,-500.0,0.0001315,2]
[323691033,1714165878530,-700.07,0.0001315,2]
[323691034,1714165878539,-192.87547843,0.0001315,2]
[323691035,1714165878551,-1367.84,0.0001315,2]
[323691036,1714165878560,-748.97,0.0001315,2]
[323691037,1714165878570,-760.98,0.0001315,2]
[323691038,1714165878579,-500.0,0.0001315,2]
[323691039,1714165878588,-726.54,0.0001315,2]
[323691040,1714165878597,-550.92,0.0001315,2]
[323691041,1714165878606,-1430.99,0.0001315,2]
[323691042,1714165878615,-570.48,0.0001315,2]
[323691043,1714165878624,-676.01,0.0001315,2]
[323691044,1714165878634,-500.0,0.0001315,2]
[323691045,1714165878642,-500.0,0.0001315,2]
[323691046,1714165878652,-1217.26,0.0001315,2]
[323691047,1714165878661,-352.42645246,0.0001315,2]
[323691048,1714165878670,-792.02,0.0001315,2]
[323691049,1714165878679,-500.0,0.0001315,2]
[323691050,1714165878688,-500.0,0.0001315,2]
[323691051,1714165878698,-500.0,0.0001315,2]
[323691052,1714165878708,-725.24,0.0001315,2]
[323691053,1714165878718,-500.0,0.0001315,2]
[323691054,1714165878728,-872.88,0.0001315,2]
[323691055,1714165878738,-940.41,0.0001315,2]
[323691056,1714165878747,-500.0,0.0001315,2]
[323691057,1714165878756,-2000.0,0.0001315,2]
[323691058,1714165878766,-509.95,0.0001315,2]
[323691059,1714165878775,-803.02,0.0001315,2]
[323691060,1714165878786,-363.21,0.0001315,2]
[323691061,1714165878796,-500.0,0.0001315,2]
[323691062,1714165878805,-749.95,0.0001315,2]
[323691063,1714165878815,-527.35,0.0001315,2]
[323691064,1714165878825,-500.0,0.0001315,2]
[323691065,1714165878834,-565.11,0.0001315,2]
[323691066,1714165878843,-656.68,0.0001315,2]
[323691067,1714165878853,-500.0,0.0001315,2]
[323691068,1714165878862,-626.53,0.0001315,2]
[323691069,1714165878871,-1008.89,0.0001315,2]
[323691070,1714165878880,-500.0,0.0001315,2]
[323691071,1714165878890,-837.59,0.0001315,2]
[323691072,1714165878899,-525.53,0.0001315,2]
[323691073,1714165878909,-1849.17,0.0001315,2]
[323691074,1714165878918,-565.57,0.0001315,2]
[323691075,1714165878928,-500.0,0.0001315,2]
[323691076,1714165878937,-1095.79,0.0001315,2]
[323691077,1714165878946,-500.0,0.0001315,2]
[323691078,1714165878956,-1100.72,0.0001315,2]
[323691079,1714165878965,-500.0,0.0001315,2]
[323691080,1714165878975,-500.0,0.0001315,2]
[323691081,1714165878985,-500.0,0.0001315,2]
[323691082,1714165878994,-609.39,0.0001315,2]
[323691083,1714165879004,-500.0,0.0001315,2]
[323691084,1714165879013,-1415.44,0.0001315,2]
[323691085,1714165879023,-433.06954986,0.0001315,2]
[323691086,1714165879033,-721.08,0.0001315,2]
[323691087,1714165879043,-500.0,0.0001315,2]
[323691088,1714165879052,-500.0,0.0001315,2]
[323691089,1714165879062,-521.34,0.0001315,2]
[323691090,1714165879071,-5617.73,0.0001315,2]
[323691091,1714165879081,-8630.93,0.0001315,2]
[323691092,1714165879091,-1052.38,0.0001315,2]
[323691093,1714165879100,-500.0,0.0001315,2]
[323691094,1714165879110,-1229.82,0.0001315,2]
[323691095,1714165879119,-6867.51,0.0001315,2]
[323691096,1714165879129,-600.27,0.0001315,2]
[323691097,1714165879138,-1794.51,0.0001315,2]
[323691098,1714165879148,-7720.32,0.0001315,2]
[323691099,1714165879158,-1596.74,0.0001315,2]
[323691100,1714165879167,-2414.19,0.0001315,2]
[323691101,1714165879176,-500.0,0.0001315,2]
[323691102,1714165879185,-2546.68,0.0001315,2]
[323691103,1714165879194,-11893.77,0.0001315,2]
[323691104,1714165879203,-500.0,0.0001315,2]
[323691105,1714165879213,-500.0,0.0001315,2]
[323691106,1714165879222,-500.0,0.0001315,2]
[323691107,1714165879231,-1472.99,0.0001315,2]
[323691108,1714165879240,-1714.54,0.0001315,2]
[323691109,1714165879249,-500.0,0.0001315,2]
[323691110,1714165879259,-3379.18,0.0001315,2]
[323691111,1714165879268,-746.33,0.0001315,2]
[323691112,1714165879277,-500.0,0.0001315,2]
[323691113,1714165879291,-1131.17,0.0001315,2]
[323691114,1714165879302,-500.0,0.0001315,2]
[323691115,1714165879311,-1362.32,0.0001315,2]
[323691116,1714165879321,-635.79,0.0001315,2]
[323691117,1714165879330,-1226.03,0.0001315,2]
[323691118,1714165879339,-1261.3,0.0001315,2]
[323691119,1714165879352,-2565.0,0.0001315,2]
[323691120,1714165879364,-6474.87,0.0001315,2]
[323691121,1714165879374,-626.49,0.0001315,2]
[323691122,1714165879641,-5265.92,0.0001315,2]
[323691123,1714165879654,-7575.76,0.0001315,2]
[323691124,1714165879665,-959.47,0.0001315,2]
[323691125,1714165879675,-500.0,0.0001315,2]
[323691126,1714165879684,-894.84,0.0001315,2]
[323691127,1714165879693,-1029.44,0.0001315,2]
[323691128,1714165879703,-1594.94,0.0001315,2]
[323691129,1714165879713,-1585.92,0.0001315,2]
[323691130,1714165879722,-927.21,0.0001315,2]
[323691131,1714165879732,-29278.54,0.0001315,2]
[323691132,1714165879742,-598.42,0.0001315,2]
[323691133,1714165879751,-2169.32,0.0001315,2]
[323691134,1714165879760,-500.0,0.0001315,2]
[323691135,1714165879770,-1031.64,0.0001315,2]
[323691136,1714165879779,-3003.77,0.0001315,2]
[323691137,1714165879789,-500.0,0.0001315,2]
[323691138,1714165879800,-500.0,0.0001315,2]
[323691139,1714165879810,-885.97,0.0001315,2]
[323691140,1714165879819,-1452.7,0.0001315,2]
[323691141,1714165879829,-500.0,0.0001315,2]
[323691142,1714165879839,-1299.05,0.0001315,2]
[323691143,1714165879849,-964.95,0.0001315,2]
[323691144,1714165879859,-6953.47,0.0001315,2]
[323691145,1714165879868,-598.29,0.0001315,2]
[323691146,1714165879878,-2182.8,0.0001315,2]
[323691147,1714165879888,-500.0,0.0001315,2]
[323691148,1714165879898,-1173.04,0.0001315,2]
[323691149,1714165879907,-2149.24,0.0001315,2]
[323691150,1714165879917,-831.79,0.0001315,2]
[323691151,1714165879927,-599.99785628,0.0001315,2]
[323691152,1714165879936,-2022.3,0.0001315,2]
[323691153,1714165879946,-4234.92,0.0001315,2]
[323691154,1714165879956,-2096.72,0.0001315,2]
[323691155,1714165879965,-1713.59,0.0001315,2]
[323691156,1714165879974,-625.39,0.0001315,2]
[323691157,1714165879984,-3159.71,0.0001315,2]
[323691158,1714165879994,-1338.07,0.0001315,2]
[323691159,1714165880004,-15953.33,0.0001315,2]
[323691160,1714165880014,-629.77,0.0001315,2]
[323691161,1714165880024,-500.0,0.0001315,2]
[323691162,1714165880034,-2250.5,0.0001315,2]
[323691163,1714165880044,-2333.3,0.0001315,2]
[323691164,1714165880054,-8716.91,0.0001315,2]
[323691165,1714165880064,-4686.34,0.0001315,2]
[323691166,1714165880074,-2136.27,0.0001315,2]
[323691167,1714165880084,-1193.75,0.0001315,2]
[323691168,1714165880095,-1350.24,0.0001315,2]
[323691169,1714165880105,-1860.65,0.0001315,2]
[323691170,1714165880115,-1152.1,0.0001315,2]
[323691171,1714165880125,-3493.58,0.0001315,2]
[323691172,1714165880135,-720.21,0.0001315,2]
[323691173,1714165880145,-1609.49,0.0001315,2]
[323691174,1714165880154,-743.96,0.0001315,2]
[323691175,1714165880165,-4354.83,0.0001315,2]
[323691176,1714165880174,-902.48,0.0001315,2]
[323691177,1714165880185,-771.76,0.0001315,2]
[323691178,1714165880195,-937.47,0.0001315,2]
[323691179,1714165880204,-563.05,0.0001315,2]
[323691180,1714165880214,-1806.19,0.0001315,2]
[323691181,1714165880223,-1571.07,0.0001315,2]
[323691182,1714165880233,-2572.91,0.0001315,2]
[323691183,1714165880243,-1736.03,0.0001315,2]
[323691184,1714165880252,-4550.03,0.0001315,2]
[323691185,1714165880262,-702.48,0.0001315,2]
[323691186,1714165880272,-2483.94,0.0001315,2]
[323691187,1714165880281,-683.53,0.0001315,2]
[323691188,1714165880296,-2118.68,0.0001315,2]
[323691189,1714165880306,-2305.98,0.0001315,2]
[323691190,1714165880315,-2824.94,0.0001315,2]
[323691191,1714165880325,-1519.98,0.0001315,2]
[323691192,1714165880335,-1443.87,0.0001315,2]
[323691193,1714165880344,-500.0,0.0001315,2]
[323691194,1714165880354,-1079.67,0.0001315,2]
[323691195,1714165880363,-5799.26,0.0001315,2]
[323691196,1714165880372,-2700.57,0.0001315,2]
[323691197,1714165880382,-1958.57,0.0001315,2]
[323691198,1714165880392,-500.0,0.0001315,2]
[323691199,1714165880401,-1238.29,0.0001315,2]
[323691200,1714165880411,-2076.33,0.0001315,2]
[323691201,1714165880421,-726.92,0.0001315,2]
[323691202,1714165880431,-3054.76,0.0001315,2]
[323691203,1714165880440,-978.83,0.0001315,2]
[323691204,1714165880449,-2476.96,0.0001315,2]
[323691205,1714165880459,-897.14,0.0001315,2]
[323691206,1714165880469,-1563.14,0.0001315,2]
[323691207,1714165880478,-334.0,0.0001315,2]
[323691208,1714165880488,-1893.28,0.0001315,2]
[323691209,1714165880498,-900.63,0.0001315,2]
[323691210,1714165880507,-1013.72,0.0001315,2]
[323691211,1714165880517,-718.21,0.0001315,2]
[323691212,1714165880526,-555.79,0.0001315,2]
[323691213,1714165880535,-6088.6,0.0001315,2]
[323691214,1714165880546,-1066.3,0.0001315,2]
[323691215,1714165880555,-500.0,0.0001315,2]
[323691216,1714165880565,-505.04,0.0001315,2]
[323691217,1714165880575,-2410.31,0.0001315,2]
[323691218,1714165880585,-820.43,0.0001315,2]
[323691219,1714165880594,-523.49,0.0001315,2]
[323691220,1714165880604,-908.81,0.0001315,2]
[323691221,1714165880614,-1371.32,0.0001315,2]
[323691222,1714165880624,-500.0,0.0001315,2]
[323691223,1714165880633,-2025.12,0.0001315,2]
[323691224,1714165880643,-560.23,0.0001315,2]
[323691225,1714165880652,-3137.06,0.0001315,2]
[323691226,1714165880662,-500.0,0.0001315,2]
[323691227,1714165880671,-500.0,0.0001315,2]
[323691228,1714165880681,-578.95,0.0001315,2]
[323691229,1714165880691,-500.0,0.0001315,2]
[323691230,1714165880700,-995.94,0.0001315,2]
[323691231,1714165880711,-2682.02,0.0001315,2]
[323691232,1714165880720,-500.0,0.0001315,2]
[323691233,1714165880730,-500.0,0.0001315,2]
[323691234,1714165880740,-500.0,0.0001315,2]
[323691235,1714165880749,-339.81,0.0001315,2]
[323691236,1714165880759,-1815.94,0.0001315,2]
[323691237,1714165880769,-500.0,0.0001315,2]
[323691238,1714165880779,-500.0,0.0001315,2]
[323691239,1714165880789,-879.8,0.00013151,2]
[323691240,1714165880800,-733.17,0.00013151,2]
[323691241,1714165880810,-700.62,0.00013206,2]
[323691242,1714165880820,-909.18,0.00013206,2]
[323691243,1714165880830,-1002.10894133,0.00013298,2]
[323691244,1714165880840,-2806.65,0.0001337,10]
[323691245,1714165880849,-500.0,0.00013424,2]
[323691246,1714165880859,-500.0,0.00013424,2]
[323691247,1714165880868,-500.0,0.00013424,2]
[323691248,1714165880878,-500.0,0.00013424,2]
[323691249,1714165880888,-615.87,0.00013424,2]
[323691250,1714165880898,-500.0,0.00013424,2]
[323691251,1714165880907,-500.0,0.00013424,2]
[323691252,1714165880917,-500.0,0.00013424,2]
[323691253,1714165880926,-500.0,0.00013424,2]
[323691254,1714165880936,-609.49,0.00013424,2]
[323691255,1714165880945,-500.0,0.00013424,2]
[323691256,1714165880955,-654.47,0.00013424,2]
[323691257,1714165880965,-678.23,0.00013424,2]
[323691258,1714165880974,-613.12,0.00013424,2]
[323691259,1714165880983,-646.77,0.00013424,2]
[323691260,1714165880992,-530.65,0.00013424,2]
[323691261,1714165881001,-880.46,0.00013424,2]
[323691262,1714165881011,-1006.3,0.00013424,2]
[323691263,1714165881020,-500.0,0.00013424,2]
[323691264,1714165881030,-500.0,0.00013424,2]
[323691265,1714165881040,-1261.56,0.00013424,2]
[323691266,1714165881050,-1360.51,0.00013424,2]
[323691267,1714165881060,-504.93,0.00013424,2]
[323691268,1714165881070,-1108.07,0.00013424,2]
[323691269,1714165881079,-500.0,0.00013424,2]
[323691270,1714165881090,-822.7,0.00013424,2]
[323691271,1714165881099,-543.02,0.00013424,2]
[323691272,1714165881109,-500.0,0.00013424,2]
[323691273,1714165881118,-1146.38,0.00013424,2]
[323691274,1714165881128,-1304.31,0.00013424,2]
[323691275,1714165881138,-560.91,0.00013424,2]